[Event "Titled Tuesday Blitz January 17 Early 2023"]
[White "Horcajuelo Rocamora, Martin"]
[Black "Terry, Renato"]
[WhiteFideId "24573027"]
[BlackFideId "3803457"]
[WhiteElo "2107"]
[BlackElo "2520"]
[Result "0-1"]
[Round "05"]
[TimeControl "180+2"]
[Date "2023.01.17"]
[WhiteClock "0:00:12"]
[BlackClock "0:00:08"]

1. e4 {[%clk 0:03:00]}  g6 {[%clk 0:02:46]} 2. d4 {[%clk 0:02:58]}  Bg7 {[%clk 0:02:46]} 3. c4 {[%clk 0:02:52]}  d6 {[%clk 0:02:46]} 4. Nc3 {[%clk 0:02:49]}  Nd7 {[%clk 0:02:43]} 5. Be2 {[%clk 0:02:43]}  e5 {[%clk 0:02:43]} 6. d5 {[%clk 0:02:43]}  Ne7 {[%clk 0:02:42]} 7. h4 {[%clk 0:02:43]}  f5 {[%clk 0:02:38]} 8. h5 {[%clk 0:02:41]}  f4 {[%clk 0:02:39]} 9. hxg6 {[%clk 0:02:36]}  hxg6 {[%clk 0:02:38]} 10. Rxh8+ {[%clk 0:02:37]}  Bxh8 {[%clk 0:02:39]} 11. Bg4 {[%clk 0:02:31]}  Nf6 {[%clk 0:02:33]} 12. Bxc8 {[%clk 0:02:30]}  Qxc8 {[%clk 0:02:33]} 13. f3 {[%clk 0:02:30]}  g5 {[%clk 0:02:25]} 14. Bd2 {[%clk 0:02:29]}  g4 {[%clk 0:02:20]} 15. Qe2 {[%clk 0:02:28]}  Bg7 {[%clk 0:02:18]} 16. O-O-O {[%clk 0:02:27]}  a6 {[%clk 0:02:04]} 17. Kb1 {[%clk 0:02:27]}  Qd7 {[%clk 0:02:03]} 18. Be1 {[%clk 0:02:24]}  Kf7 {[%clk 0:01:52]} 19. Bh4 {[%clk 0:02:17]}  g3 {[%clk 0:01:41]} 20. Nh3 {[%clk 0:02:09]}  Rh8 {[%clk 0:01:34]} 21. Bxf6 {[%clk 0:01:59]}  Bxf6 {[%clk 0:01:35]} 22. Rh1 {[%clk 0:01:59]}  Kg7 {[%clk 0:01:35]} 23. Qc2 {[%clk 0:01:56]}  Ng6 {[%clk 0:01:34]} 24. Nd1 {[%clk 0:01:51]}  Nh4 {[%clk 0:01:34]} 25. Ng1 {[%clk 0:01:49]}  Nxf3 {[%clk 0:01:18]} 26. Rxh8 {[%clk 0:01:41]}  Nd4 {[%clk 0:01:18]} 27. Qd3 {[%clk 0:01:17]}  Kxh8 {[%clk 0:01:17]} 28. Nf3 {[%clk 0:01:17]}  Qg4 {[%clk 0:01:17]} 29. Nxd4 {[%clk 0:01:15]}  exd4 {[%clk 0:01:18]} 30. Kc2 {[%clk 0:01:14]}  Be5 {[%clk 0:01:08]} 31. Kd2 {[%clk 0:01:14]}  f3 {[%clk 0:01:08]} 32. gxf3 {[%clk 0:01:13]}  Qg5+ {[%clk 0:01:06]} 33. f4 {[%clk 0:01:09]}  Bxf4+ {[%clk 0:01:02]} 34. Ke2 {[%clk 0:01:04]}  g2 {[%clk 0:00:52]} 35. Qh3+ {[%clk 0:01:03]}  Kg7 {[%clk 0:00:47]} 36. Qd7+ {[%clk 0:01:02]}  Kh6 {[%clk 0:00:39]} 37. Qh3+ {[%clk 0:00:59]}  Kg6 {[%clk 0:00:39]} 38. Qe6+ {[%clk 0:00:58]}  Qf6 {[%clk 0:00:37]} 39. Qg8+ {[%clk 0:00:53]}  Qg7 {[%clk 0:00:34]} 40. Qxg7+ {[%clk 0:00:52]}  Kxg7 {[%clk 0:00:34]} 41. Kf2 {[%clk 0:00:53]}  Kf6 {[%clk 0:00:30]} 42. Kxg2 {[%clk 0:00:53]}  Ke5 {[%clk 0:00:30]} 43. Kf3 {[%clk 0:00:53]}  d3 {[%clk 0:00:31]} 44. Nf2 {[%clk 0:00:49]}  d2 {[%clk 0:00:31]} 45. Nd1 {[%clk 0:00:25]}  Bh6 {[%clk 0:00:27]} 46. b3 {[%clk 0:00:11]}  Kd4 {[%clk 0:00:27]} 47. Ke2 {[%clk 0:00:11]}  Kxe4 {[%clk 0:00:26]} 48. Nc3+ {[%clk 0:00:12]}  Kd4 {[%clk 0:00:26]} 49. Nd1 {[%clk 0:00:12]}  Bg5 {[%clk 0:00:18]} 50. Nb2 {[%clk 0:00:10]}  Kc3 {[%clk 0:00:18]} 51. Nd1+ {[%clk 0:00:09]}  Kc2 {[%clk 0:00:19]} 52. b4 {[%clk 0:00:09]}  b5 {[%clk 0:00:13]} 53. c5 {[%clk 0:00:09]}  Bf4 {[%clk 0:00:12]} 54. c6 {[%clk 0:00:09]}  Bg5 {[%clk 0:00:12]} 55. Nf2 {[%clk 0:00:09]}  Bh6 {[%clk 0:00:12]} 56. Nd1 {[%clk 0:00:09]}  Bf4 {[%clk 0:00:08]} 57. Nf2 {[%clk 0:00:10]}  Kc3 {[%clk 0:00:09]} 58. a3 {[%clk 0:00:10]}  Kc2 {[%clk 0:00:08]} 59. Nd1 {[%clk 0:00:10]}  Kb3 {[%clk 0:00:08]} 60. Kf3 {[%clk 0:00:10]}  Bh6 {[%clk 0:00:08]} 61. Ke2 {[%clk 0:00:10]}  Kxa3 {[%clk 0:00:08]} 62. Kd3 {[%clk 0:00:11]}  Kxb4 {[%clk 0:00:08]} 63. Kc2 {[%clk 0:00:11]}  Kc5 {[%clk 0:00:09]} 64. Nc3 {[%clk 0:00:11]}  b4 {[%clk 0:00:08]} 65. Na4+ {[%clk 0:00:12]}  Kxd5 {[%clk 0:00:08]} 0-1


[Site "https://www.chess.com"]

[Event "Titled Tuesday Blitz January 17 Early 2023"]
[White "Kodinets, Konstantin L."]
[Black "Xu, Yi"]
[WhiteFideId "4122011"]
[BlackFideId "8605564"]
[WhiteElo "2409"]
[BlackElo "2527"]
[Result "0-1"]
[Round "05"]
[TimeControl "180+2"]
[Date "2023.01.17"]
[WhiteClock "0:00:01"]
[BlackClock "0:00:09"]

1. d4 {[%clk 0:03:00]}  Nf6 {[%clk 0:02:59]} 2. Nf3 {[%clk 0:03:00]}  d5 {[%clk 0:03:00]} 3. Bf4 {[%clk 0:03:00]}  c5 {[%clk 0:02:59]} 4. e3 {[%clk 0:03:01]}  Nc6 {[%clk 0:02:58]} 5. c3 {[%clk 0:03:01]}  Qb6 {[%clk 0:02:57]} 6. Qc2 {[%clk 0:03:02]}  g6 {[%clk 0:02:54]} 7. Nbd2 {[%clk 0:03:01]}  Bf5 {[%clk 0:02:53]} 8. dxc5 {[%clk 0:03:01]}  Qxc5 {[%clk 0:02:49]} 9. Qb3 {[%clk 0:03:01]}  Qb6 {[%clk 0:02:42]} 10. Be2 {[%clk 0:03:02]}  Bg7 {[%clk 0:02:40]} 11. O-O {[%clk 0:03:02]}  O-O {[%clk 0:02:37]} 12. Ne5 {[%clk 0:03:02]}  Rac8 {[%clk 0:02:12]} 13. h3 {[%clk 0:02:57]}  Rfd8 {[%clk 0:02:12]} 14. Bh2 {[%clk 0:02:38]}  Qxb3 {[%clk 0:01:45]} 15. axb3 {[%clk 0:02:36]}  a6 {[%clk 0:01:45]} 16. Nxc6 {[%clk 0:02:34]}  Rxc6 {[%clk 0:01:45]} 17. b4 {[%clk 0:02:34]}  Ne4 {[%clk 0:01:26]} 18. Nxe4 {[%clk 0:02:34]}  Bxe4 {[%clk 0:01:26]} 19. Rfd1 {[%clk 0:02:28]}  Rcc8 {[%clk 0:01:06]} 20. f3 {[%clk 0:02:18]}  Bf5 {[%clk 0:01:05]} 21. g4 {[%clk 0:02:17]}  Be6 {[%clk 0:01:03]} 22. Kf2 {[%clk 0:02:16]}  f6 {[%clk 0:00:57]} 23. Rd2 {[%clk 0:02:13]}  Bf7 {[%clk 0:00:58]} 24. Rad1 {[%clk 0:02:12]}  Re8 {[%clk 0:00:52]} 25. f4 {[%clk 0:01:53]}  e5 {[%clk 0:00:51]} 26. Bf3 {[%clk 0:01:35]}  e4 {[%clk 0:00:51]} 27. Be2 {[%clk 0:01:34]}  Be6 {[%clk 0:00:46]} 28. h4 {[%clk 0:01:25]}  f5 {[%clk 0:00:46]} 29. Kg3 {[%clk 0:01:20]}  Rc7 {[%clk 0:00:39]} 30. Bg1 {[%clk 0:01:15]}  Bf6 {[%clk 0:00:39]} 31. Bf2 {[%clk 0:01:15]}  Kf8 {[%clk 0:00:37]} 32. Rh1 {[%clk 0:00:20]}  Ke7 {[%clk 0:00:31]} 33. Bd1 {[%clk 0:00:19]}  Rd7 {[%clk 0:00:27]} 34. g5 {[%clk 0:00:19]}  Bg7 {[%clk 0:00:26]} 35. Bb3 {[%clk 0:00:19]}  Red8 {[%clk 0:00:23]} 36. Rhd1 {[%clk 0:00:19]}  Rd6 {[%clk 0:00:23]} 37. Bc2 {[%clk 0:00:11]}  h6 {[%clk 0:00:21]} 38. Rh1 {[%clk 0:00:09]}  Rc8 {[%clk 0:00:19]} 39. Be1 {[%clk 0:00:05]}  Rdc6 {[%clk 0:00:11]} 40. Bd1 {[%clk 0:00:01]}  h5 {[%clk 0:00:09]} 0-1


[Site "https://www.chess.com"]

[Event "Titled Tuesday Blitz January 17 Early 2023"]
[White "Iskusnyh, Sergei"]
[Black "Zhigalko, Sergei"]
[WhiteFideId "4120027"]
[BlackFideId "13502956"]
[WhiteElo "2440"]
[BlackElo "2572"]
[Result "0-1"]
[Round "05"]
[TimeControl "180+2"]
[Date "2023.01.17"]
[WhiteClock "0:00:02"]
[BlackClock "0:00:02"]

1. d4 {[%clk 0:02:58]}  Nf6 {[%clk 0:02:59]} 2. Nf3 {[%clk 0:02:55]}  e6 {[%clk 0:02:59]} 3. g3 {[%clk 0:02:54]}  b5 {[%clk 0:02:58]} 4. Bg2 {[%clk 0:02:54]}  Bb7 {[%clk 0:02:58]} 5. O-O {[%clk 0:02:54]}  c5 {[%clk 0:02:58]} 6. c3 {[%clk 0:02:48]}  Be7 {[%clk 0:02:58]} 7. Bg5 {[%clk 0:02:46]}  cxd4 {[%clk 0:02:57]} 8. cxd4 {[%clk 0:02:46]}  O-O {[%clk 0:02:58]} 9. Nbd2 {[%clk 0:02:39]}  d6 {[%clk 0:02:58]} 10. Qb3 {[%clk 0:02:31]}  Qb6 {[%clk 0:02:40]} 11. a4 {[%clk 0:02:12]}  bxa4 {[%clk 0:02:24]} 12. Rxa4 {[%clk 0:02:09]}  Nc6 {[%clk 0:02:17]} 13. Rfa1 {[%clk 0:01:56]}  Rab8 {[%clk 0:02:16]} 14. Qxb6 {[%clk 0:01:50]}  axb6 {[%clk 0:02:15]} 15. e3 {[%clk 0:01:43]}  b5 {[%clk 0:02:01]} 16. R4a3 {[%clk 0:01:37]}  Nb4 {[%clk 0:01:21]} 17. Rb3 {[%clk 0:01:28]}  d5 {[%clk 0:01:20]} 18. Ne5 {[%clk 0:01:20]}  Rfc8 {[%clk 0:01:19]} 19. Bf1 {[%clk 0:01:08]}  Rc2 {[%clk 0:00:41]} 20. Ndf3 {[%clk 0:01:00]}  Bc8 {[%clk 0:00:21]} 21. Bxf6 {[%clk 0:00:51]}  gxf6 {[%clk 0:00:21]} 22. Nd3 {[%clk 0:00:51]}  Rc4 {[%clk 0:00:07]} 23. Nc5 {[%clk 0:00:41]}  Nc2 {[%clk 0:00:06]} 24. Ra7 {[%clk 0:00:19]}  Bxc5 {[%clk 0:00:06]} 25. dxc5 {[%clk 0:00:20]}  Rxc5 {[%clk 0:00:07]} 26. Bd3 {[%clk 0:00:18]}  b4 {[%clk 0:00:05]} 27. Bxc2 {[%clk 0:00:09]}  Rxc2 {[%clk 0:00:05]} 28. Nd4 {[%clk 0:00:10]}  Rc4 {[%clk 0:00:03]} 29. h4 {[%clk 0:00:10]}  e5 {[%clk 0:00:03]} 30. Nf3 {[%clk 0:00:05]}  Bf5 {[%clk 0:00:03]} 31. h5 {[%clk 0:00:04]}  Bc2 {[%clk 0:00:03]} 32. Nd2 {[%clk 0:00:02]}  Bxb3 {[%clk 0:00:03]} 33. Nxb3 {[%clk 0:00:03]}  Rc2 {[%clk 0:00:03]} 34. Na5 {[%clk 0:00:02]}  h6 {[%clk 0:00:02]} 35. Nc6 {[%clk 0:00:02]}  Rxc6 {[%clk 0:00:02]} 0-1


[Site "https://www.chess.com"]

[Event "Titled Tuesday Blitz January 17 Early 2023"]
[White "Ozen, Bahadir"]
[Black "Odegov, Artem"]
[WhiteFideId "6337058"]
[BlackFideId "34183644"]
[WhiteElo "2369"]
[BlackElo "2261"]
[Result "1-0"]
[Round "05"]
[TimeControl "180+2"]
[Date "2023.01.17"]
[WhiteClock "0:00:28"]
[BlackClock "0:00:13"]

1. g3 {[%clk 0:03:00]}  d5 {[%clk 0:02:57]} 2. Nf3 {[%clk 0:03:00]}  c6 {[%clk 0:02:57]} 3. Bg2 {[%clk 0:03:01]}  Bf5 {[%clk 0:02:56]} 4. d3 {[%clk 0:03:00]}  Nf6 {[%clk 0:02:57]} 5. O-O {[%clk 0:02:59]}  e6 {[%clk 0:02:57]} 6. Nh4 {[%clk 0:02:59]}  Bg4 {[%clk 0:02:56]} 7. h3 {[%clk 0:02:59]}  Bh5 {[%clk 0:02:55]} 8. Qe1 {[%clk 0:02:59]}  Be7 {[%clk 0:02:46]} 9. f4 {[%clk 0:02:50]}  Nbd7 {[%clk 0:01:42]} 10. e4 {[%clk 0:02:48]}  dxe4 {[%clk 0:01:25]} 11. dxe4 {[%clk 0:02:49]}  O-O {[%clk 0:01:10]} 12. Be3 {[%clk 0:02:49]}  Nc5 {[%clk 0:00:54]} 13. Nd2 {[%clk 0:02:06]}  Bg6 {[%clk 0:00:34]} 14. Bf2 {[%clk 0:01:28]}  h6 {[%clk 0:00:13]} 15. Nxg6 {[%clk 0:01:27]}  fxg6 {[%clk 0:00:14]} 16. Qe2 {[%clk 0:01:17]}  Qc7 {[%clk 0:00:14]} 17. Nc4 {[%clk 0:00:44]}  Rae8 {[%clk 0:00:14]} 18. Ne5 {[%clk 0:00:44]}  Kh7 {[%clk 0:00:13]} 19. Rad1 {[%clk 0:00:44]}  b6 {[%clk 0:00:10]} 20. Qc4 {[%clk 0:00:39]}  Bd6 {[%clk 0:00:10]} 21. Nxg6 {[%clk 0:00:37]}  Kxg6 {[%clk 0:00:08]} 22. e5 {[%clk 0:00:37]}  Bxe5 {[%clk 0:00:05]} 23. fxe5 {[%clk 0:00:38]}  Qxe5 {[%clk 0:00:05]} 24. b4 {[%clk 0:00:29]}  Nce4 {[%clk 0:00:05]} 25. Rde1 {[%clk 0:00:27]}  Qd5 {[%clk 0:00:04]} 26. Bxe4+ {[%clk 0:00:26]}  Nxe4 {[%clk 0:00:02]} 27. Qxe4+ {[%clk 0:00:27]}  Qxe4 {[%clk 0:00:03]} 28. Rxe4 {[%clk 0:00:28]}  Rf3 {[%clk 0:00:02]} 29. Rfe1 {[%clk 0:00:22]}  Ref8 {[%clk 0:00:02]} 30. Rxe6+ {[%clk 0:00:23]}  Kh7 {[%clk 0:00:03]} 31. R1e2 {[%clk 0:00:22]}  c5 {[%clk 0:00:03]} 32. bxc5 {[%clk 0:00:23]}  bxc5 {[%clk 0:00:04]} 33. Bxc5 {[%clk 0:00:21]}  R8f7 {[%clk 0:00:04]} 34. Kg2 {[%clk 0:00:21]}  Rf1 {[%clk 0:00:03]} 35. Re7 {[%clk 0:00:20]}  Rxe7 {[%clk 0:00:03]} 36. Rxe7 {[%clk 0:00:19]}  Rc1 {[%clk 0:00:04]} 37. Re2 {[%clk 0:00:20]}  h5 {[%clk 0:00:03]} 38. h4 {[%clk 0:00:20]}  g5 {[%clk 0:00:03]} 39. hxg5 {[%clk 0:00:20]}  Kg6 {[%clk 0:00:04]} 40. a3 {[%clk 0:00:19]}  h4 {[%clk 0:00:04]} 41. gxh4 {[%clk 0:00:19]}  a5 {[%clk 0:00:05]} 42. Bd4 {[%clk 0:00:19]}  a4 {[%clk 0:00:05]} 43. Bc5 {[%clk 0:00:18]}  Ra1 {[%clk 0:00:04]} 44. Bb4 {[%clk 0:00:19]}  Rd1 {[%clk 0:00:04]} 45. Re6+ {[%clk 0:00:18]}  Kh5 {[%clk 0:00:04]} 46. Rh6+ {[%clk 0:00:19]}  Kg4 {[%clk 0:00:04]} 47. Kf2 {[%clk 0:00:19]}  Rc1 {[%clk 0:00:04]} 48. Rc6 {[%clk 0:00:19]}  Rb1 {[%clk 0:00:04]} 49. g6 {[%clk 0:00:19]}  Kh5 {[%clk 0:00:05]} 50. g7 {[%clk 0:00:19]}  Rh1 {[%clk 0:00:04]} 51. Rc5+ {[%clk 0:00:20]}  Kh6 {[%clk 0:00:03]} 52. g8=N+ {[%clk 0:00:18]}  Kh7 {[%clk 0:00:02]} 53. Nf6+ {[%clk 0:00:18]}  Kg6 {[%clk 0:00:03]} 54. Ne4 {[%clk 0:00:18]}  Rxh4 {[%clk 0:00:03]} 55. Ke3 {[%clk 0:00:18]}  Rh3+ {[%clk 0:00:03]} 56. Kd4 {[%clk 0:00:19]}  Kh6 {[%clk 0:00:02]} 57. Ra5 {[%clk 0:00:19]}  Rh2 {[%clk 0:00:02]} 58. c4 {[%clk 0:00:19]}  Rc2 {[%clk 0:00:02]} 59. Rxa4 {[%clk 0:00:19]}  Rc1 {[%clk 0:00:02]} 60. Bd2+ {[%clk 0:00:19]}  Kh5 {[%clk 0:00:02]} 61. Bxc1 {[%clk 0:00:20]}  Kg4 {[%clk 0:00:03]} 62. Rb4 {[%clk 0:00:21]}  Kh3 {[%clk 0:00:03]} 63. a4 {[%clk 0:00:22]}  Kg2 {[%clk 0:00:04]} 64. a5 {[%clk 0:00:23]}  Kh1 {[%clk 0:00:05]} 65. a6 {[%clk 0:00:24]}  Kg2 {[%clk 0:00:06]} 66. a7 {[%clk 0:00:24]}  Kh1 {[%clk 0:00:07]} 67. c5 {[%clk 0:00:25]}  Kg2 {[%clk 0:00:08]} 68. c6 {[%clk 0:00:26]}  Kf1 {[%clk 0:00:08]} 69. c7 {[%clk 0:00:27]}  Ke2 {[%clk 0:00:09]} 70. Bb2 {[%clk 0:00:28]}  Kd1 {[%clk 0:00:10]} 71. Ba3 {[%clk 0:00:29]}  Ke2 {[%clk 0:00:11]} 72. a8=Q {[%clk 0:00:29]}  Kd1 {[%clk 0:00:12]} 73. c8=Q {[%clk 0:00:28]}  Ke2 {[%clk 0:00:13]} 74. Qg4+ {[%clk 0:00:28]}  Ke1 {[%clk 0:00:13]} 75. Rb1# {[%clk 0:00:28]} 1-0


[Site "https://www.chess.com"]

[Event "Titled Tuesday Blitz January 17 Early 2023"]
[White "Tsaruk, Maksim"]
[Black "Mohamed Anees M"]
[WhiteFideId "13511173"]
[BlackFideId "35065815"]
[WhiteElo "2373"]
[BlackElo "2315"]
[Result "1-0"]
[Round "05"]
[TimeControl "180+2"]
[Date "2023.01.17"]
[WhiteClock "0:00:05"]
[BlackClock "0:00:55"]

1. Nf3 {[%clk 0:02:55]}  d5 {[%clk 0:02:59]} 2. g3 {[%clk 0:02:56]}  Nf6 {[%clk 0:02:59]} 3. Bg2 {[%clk 0:02:57]}  Bf5 {[%clk 0:02:59]} 4. O-O {[%clk 0:02:58]}  e6 {[%clk 0:02:59]} 5. d3 {[%clk 0:02:59]}  h6 {[%clk 0:03:00]} 6. b3 {[%clk 0:02:59]}  Be7 {[%clk 0:03:00]} 7. Bb2 {[%clk 0:03:00]}  O-O {[%clk 0:03:01]} 8. Nbd2 {[%clk 0:03:00]}  Nbd7 {[%clk 0:03:01]} 9. Re1 {[%clk 0:02:58]}  Bg6 {[%clk 0:02:59]} 10. e4 {[%clk 0:02:58]}  dxe4 {[%clk 0:02:59]} 11. dxe4 {[%clk 0:02:58]}  c5 {[%clk 0:02:56]} 12. Qe2 {[%clk 0:02:57]}  Qc7 {[%clk 0:02:55]} 13. h3 {[%clk 0:02:53]}  Rfe8 {[%clk 0:02:53]} 14. e5 {[%clk 0:02:47]}  Nd5 {[%clk 0:02:52]} 15. Ne4 {[%clk 0:02:45]}  c4 {[%clk 0:02:42]} 16. Bd4 {[%clk 0:02:19]}  Rac8 {[%clk 0:02:29]} 17. Qd2 {[%clk 0:01:39]}  b5 {[%clk 0:02:23]} 18. a4 {[%clk 0:01:36]}  c3 {[%clk 0:02:21]} 19. Qe2 {[%clk 0:01:29]}  b4 {[%clk 0:02:20]} 20. Qa6 {[%clk 0:01:25]}  Nc5 {[%clk 0:02:18]} 21. Bxc5 {[%clk 0:01:18]}  Bxc5 {[%clk 0:02:19]} 22. Rad1 {[%clk 0:01:03]}  Red8 {[%clk 0:02:18]} 23. Nh4 {[%clk 0:00:43]}  Bh7 {[%clk 0:02:15]} 24. Nxc5 {[%clk 0:00:35]}  Qxc5 {[%clk 0:02:12]} 25. Be4 {[%clk 0:00:36]}  Bxe4 {[%clk 0:02:09]} 26. Rxe4 {[%clk 0:00:35]}  Nc7 {[%clk 0:02:05]} 27. Qe2 {[%clk 0:00:31]}  a5 {[%clk 0:02:01]} 28. Nf3 {[%clk 0:00:30]}  Nd5 {[%clk 0:01:51]} 29. Rdd4 {[%clk 0:00:28]}  Qe7 {[%clk 0:01:48]} 30. Kg2 {[%clk 0:00:25]}  Nc7 {[%clk 0:01:42]} 31. h4 {[%clk 0:00:22]}  Rxd4 {[%clk 0:01:40]} 32. Rxd4 {[%clk 0:00:23]}  Rd8 {[%clk 0:01:40]} 33. Qc4 {[%clk 0:00:21]}  Rxd4 {[%clk 0:01:36]} 34. Nxd4 {[%clk 0:00:22]}  Qd7 {[%clk 0:01:36]} 35. Kf3 {[%clk 0:00:20]}  Nd5 {[%clk 0:01:25]} 36. Qc6 {[%clk 0:00:18]}  Qa7 {[%clk 0:01:22]} 37. Ke4 {[%clk 0:00:18]}  Ne7 {[%clk 0:01:14]} 38. Qe8+ {[%clk 0:00:16]}  Kh7 {[%clk 0:01:12]} 39. Qxf7 {[%clk 0:00:15]}  Qb7+ {[%clk 0:01:04]} 40. Kd3 {[%clk 0:00:15]}  Qd7 {[%clk 0:01:03]} 41. Qxe6 {[%clk 0:00:14]}  Qc7 {[%clk 0:01:03]} 42. Qd6 {[%clk 0:00:13]}  Qb7 {[%clk 0:01:03]} 43. e6 {[%clk 0:00:10]}  Ng6 {[%clk 0:01:00]} 44. h5 {[%clk 0:00:08]}  Ne7 {[%clk 0:00:58]} 45. Qd7 {[%clk 0:00:09]}  Qh1 {[%clk 0:00:55]} 46. Qxe7 {[%clk 0:00:05]}  Qd1+ {[%clk 0:00:55]} 47. Kc4 {[%clk 0:00:06]}  Qf1+ {[%clk 0:00:54]} 48. Kc5 {[%clk 0:00:05]}  Qxf2 {[%clk 0:00:55]} 49. Qd6 {[%clk 0:00:05]} 1-0


[Site "https://www.chess.com"]

[Event "Titled Tuesday Blitz January 17 Early 2023"]
[White "Al-Tarboush, Ward"]
[Black "Borges Feria, Yasel"]
[WhiteFideId "7601450"]
[BlackFideId "3504921"]
[WhiteElo "2256"]
[BlackElo "2439"]
[Result "0-1"]
[Round "05"]
[TimeControl "180+2"]
[Date "2023.01.17"]
[WhiteClock "0:01:15"]
[BlackClock "0:00:31"]

1. e4 {[%clk 0:03:00]}  c6 {[%clk 0:02:57]} 2. Nf3 {[%clk 0:03:01]}  d5 {[%clk 0:02:57]} 3. Nc3 {[%clk 0:03:02]}  Bg4 {[%clk 0:02:56]} 4. h3 {[%clk 0:03:02]}  Bxf3 {[%clk 0:02:57]} 5. Qxf3 {[%clk 0:03:02]}  e6 {[%clk 0:02:58]} 6. Be2 {[%clk 0:03:03]}  Nf6 {[%clk 0:02:55]} 7. O-O {[%clk 0:03:03]}  Nbd7 {[%clk 0:02:47]} 8. d4 {[%clk 0:03:03]}  dxe4 {[%clk 0:02:46]} 9. Nxe4 {[%clk 0:03:04]}  Nxe4 {[%clk 0:02:47]} 10. Qxe4 {[%clk 0:03:05]}  Nf6 {[%clk 0:02:47]} 11. Qh4 {[%clk 0:03:05]}  Be7 {[%clk 0:02:47]} 12. c3 {[%clk 0:03:05]}  O-O {[%clk 0:02:42]} 13. Qg3 {[%clk 0:03:02]}  Ne4 {[%clk 0:02:38]} 14. Qg4 {[%clk 0:03:02]}  Nf6 {[%clk 0:02:37]} 15. Qg3 {[%clk 0:03:02]}  Bd6 {[%clk 0:02:18]} 16. Qh4 {[%clk 0:02:58]}  Nd5 {[%clk 0:02:17]} 17. Bg5 {[%clk 0:02:56]}  Be7 {[%clk 0:02:17]} 18. f4 {[%clk 0:02:55]}  h6 {[%clk 0:02:12]} 19. Bxe7 {[%clk 0:02:54]}  Qxe7 {[%clk 0:02:13]} 20. Qxe7 {[%clk 0:02:52]}  Nxe7 {[%clk 0:02:14]} 21. g4 {[%clk 0:02:53]}  Rad8 {[%clk 0:02:12]} 22. Bf3 {[%clk 0:02:53]}  Rfe8 {[%clk 0:02:07]} 23. h4 {[%clk 0:02:52]}  Ng6 {[%clk 0:02:04]} 24. Be4 {[%clk 0:02:44]}  Nxh4 {[%clk 0:02:00]} 25. Rae1 {[%clk 0:02:40]}  f5 {[%clk 0:01:58]} 26. gxf5 {[%clk 0:02:30]}  exf5 {[%clk 0:01:57]} 27. Bh1 {[%clk 0:02:25]}  Ng6 {[%clk 0:01:39]} 28. Rxe8+ {[%clk 0:02:22]}  Rxe8 {[%clk 0:01:38]} 29. d5 {[%clk 0:02:23]}  c5 {[%clk 0:01:34]} 30. d6 {[%clk 0:02:18]}  Rd8 {[%clk 0:01:31]} 31. Rd1 {[%clk 0:02:19]}  b6 {[%clk 0:01:27]} 32. d7 {[%clk 0:02:13]}  Nxf4 {[%clk 0:00:56]} 33. Bc6 {[%clk 0:02:12]}  Nh3+ {[%clk 0:00:56]} 34. Kf1 {[%clk 0:02:11]}  Ng5 {[%clk 0:00:56]} 35. Re1 {[%clk 0:02:11]}  Ne4 {[%clk 0:00:57]} 36. Rd1 {[%clk 0:02:04]}  Kf7 {[%clk 0:00:57]} 37. Ke2 {[%clk 0:02:01]}  Ke7 {[%clk 0:00:56]} 38. Kf3 {[%clk 0:02:00]}  Nf6 {[%clk 0:00:48]} 39. Re1+ {[%clk 0:01:59]}  Kd6 {[%clk 0:00:44]} 40. Bb5 {[%clk 0:01:59]}  Nxd7 {[%clk 0:00:43]} 41. Kf4 {[%clk 0:02:00]}  g5+ {[%clk 0:00:42]} 42. Kxf5 {[%clk 0:02:00]}  Rf8+ {[%clk 0:00:40]} 43. Kg6 {[%clk 0:02:00]}  Ne5+ {[%clk 0:00:40]} 44. Kxh6 {[%clk 0:01:59]}  g4 {[%clk 0:00:40]} 45. Rg1 {[%clk 0:01:49]}  Rf2 {[%clk 0:00:40]} 46. Kg7 {[%clk 0:01:37]}  Rxb2 {[%clk 0:00:39]} 47. a4 {[%clk 0:01:37]}  Rf2 {[%clk 0:00:39]} 48. Rd1+ {[%clk 0:01:30]}  Ke6 {[%clk 0:00:37]} 49. Rg1 {[%clk 0:01:30]}  Kf5 {[%clk 0:00:37]} 50. Kh6 {[%clk 0:01:20]}  Rh2+ {[%clk 0:00:35]} 51. Kg7 {[%clk 0:01:21]}  Nf3 {[%clk 0:00:35]} 52. Rf1 {[%clk 0:01:18]}  Kf4 {[%clk 0:00:36]} 53. Bc6 {[%clk 0:01:18]}  Rc2 {[%clk 0:00:35]} 54. Rd1 {[%clk 0:01:14]}  Rxc3 {[%clk 0:00:33]} 55. Rd7 {[%clk 0:01:15]}  Ne5 {[%clk 0:00:31]} 0-1


[Site "https://www.chess.com"]

[Event "Titled Tuesday Blitz January 17 Early 2023"]
[White "Janaszak, Dawid"]
[Black "Dimitrov, Atanas"]
[WhiteFideId "1119206"]
[BlackFideId "2901315"]
[WhiteElo "2316"]
[BlackElo "2269"]
[Result "1-0"]
[Round "05"]
[TimeControl "180+2"]
[Date "2023.01.17"]
[WhiteClock "0:00:16"]
[BlackClock "0:00:09"]

1. e4 {[%clk 0:02:59]}  c5 {[%clk 0:03:00]} 2. Nc3 {[%clk 0:02:55]}  Nc6 {[%clk 0:02:59]} 3. Bb5 {[%clk 0:02:55]}  Nd4 {[%clk 0:02:51]} 4. Nf3 {[%clk 0:02:55]}  Nxb5 {[%clk 0:02:51]} 5. Nxb5 {[%clk 0:02:55]}  d6 {[%clk 0:02:51]} 6. d4 {[%clk 0:02:54]}  cxd4 {[%clk 0:02:51]} 7. Qxd4 {[%clk 0:02:53]}  Bd7 {[%clk 0:02:50]} 8. Nc3 {[%clk 0:02:45]}  Nf6 {[%clk 0:02:36]} 9. Bg5 {[%clk 0:02:41]}  e6 {[%clk 0:02:32]} 10. O-O-O {[%clk 0:02:38]}  Be7 {[%clk 0:02:32]} 11. e5 {[%clk 0:02:35]}  dxe5 {[%clk 0:02:18]} 12. Nxe5 {[%clk 0:02:36]}  Bc6 {[%clk 0:02:15]} 13. Nxc6 {[%clk 0:02:22]}  bxc6 {[%clk 0:02:12]} 14. Qxd8+ {[%clk 0:02:21]}  Rxd8 {[%clk 0:02:06]} 15. f3 {[%clk 0:02:13]}  Nd5 {[%clk 0:02:02]} 16. Bxe7 {[%clk 0:02:10]}  Kxe7 {[%clk 0:02:03]} 17. Ne4 {[%clk 0:02:10]}  Ne3 {[%clk 0:01:53]} 18. Rxd8 {[%clk 0:02:00]}  Rxd8 {[%clk 0:01:54]} 19. g3 {[%clk 0:01:56]}  h6 {[%clk 0:01:52]} 20. Re1 {[%clk 0:01:55]}  Nf5 {[%clk 0:01:45]} 21. c3 {[%clk 0:01:44]}  Rd5 {[%clk 0:01:39]} 22. Kc2 {[%clk 0:01:43]}  Ra5 {[%clk 0:01:33]} 23. a3 {[%clk 0:01:39]}  g5 {[%clk 0:01:30]} 24. Nf2 {[%clk 0:01:35]}  h5 {[%clk 0:01:22]} 25. Nd3 {[%clk 0:01:33]}  f6 {[%clk 0:01:17]} 26. Re4 {[%clk 0:01:23]}  e5 {[%clk 0:01:13]} 27. Rb4 {[%clk 0:01:21]}  Nd6 {[%clk 0:01:12]} 28. Rb8 {[%clk 0:01:19]}  Kf7 {[%clk 0:01:08]} 29. Rd8 {[%clk 0:01:17]}  Nc4 {[%clk 0:00:59]} 30. Rd7+ {[%clk 0:01:07]}  Kg6 {[%clk 0:00:58]} 31. Rc7 {[%clk 0:00:54]}  Ne3+ {[%clk 0:00:56]} 32. Kb3 {[%clk 0:00:44]}  Nf1 {[%clk 0:00:48]} 33. Rxc6 {[%clk 0:00:40]}  Rd5 {[%clk 0:00:42]} 34. Nc5 {[%clk 0:00:31]}  Nd2+ {[%clk 0:00:26]} 35. Kc2 {[%clk 0:00:28]}  Nxf3 {[%clk 0:00:27]} 36. Ne4 {[%clk 0:00:28]}  g4 {[%clk 0:00:26]} 37. Rxf6+ {[%clk 0:00:27]}  Kg7 {[%clk 0:00:26]} 38. Ra6 {[%clk 0:00:27]}  Nxh2 {[%clk 0:00:24]} 39. Rxa7+ {[%clk 0:00:26]}  Kg6 {[%clk 0:00:24]} 40. Ra6+ {[%clk 0:00:24]}  Kf5 {[%clk 0:00:21]} 41. Nd6+ {[%clk 0:00:24]}  Rxd6 {[%clk 0:00:12]} 42. Rxd6 {[%clk 0:00:24]}  Nf1 {[%clk 0:00:12]} 43. a4 {[%clk 0:00:22]}  Nxg3 {[%clk 0:00:13]} 44. a5 {[%clk 0:00:22]}  h4 {[%clk 0:00:14]} 45. a6 {[%clk 0:00:22]}  h3 {[%clk 0:00:15]} 46. Rh6 {[%clk 0:00:21]}  h2 {[%clk 0:00:16]} 47. Rxh2 {[%clk 0:00:20]}  Ne4 {[%clk 0:00:08]} 48. Rh7 {[%clk 0:00:18]}  g3 {[%clk 0:00:09]} 49. Rh1 {[%clk 0:00:16]} 1-0


[Site "https://www.chess.com"]